bitfinex/quotes_BTCUSD_20251224
["timestamp","ask_amount","ask_price","bid_price","bid_amount"]
[1766594687490,0.01156,87538.0,87529.0,0.06854858]
[1766594687925,0.01156,87538.0,87530.0,0.01142465]
[1766594688083,0.01156,87538.0,87528.0,0.06854947]
[1766594689212,0.01156,87538.0,87526.0,0.00011]
[1766594689538,0.01156,87538.0,87526.0,0.06866083]
[1766594689697,0.01156,87538.0,87527.0,0.05712469]
[1766594689893,0.01156,87538.0,87527.0,0.06854973]
[1766594690090,0.01156,87538.0,87526.0,0.06866095]
[1766594690091,0.01156,87538.0,87526.0,0.00011]
[1766594690518,0.01142374,87537.0,87526.0,0.00011]
[1766594690724,0.01142387,87536.0,87526.0,0.00011]
[1766594690921,0.011424,87535.0,87526.0,0.00011]
[1766594691280,0.06854292,87537.0,87526.0,0.00011]
[1766594691498,0.01156,87538.0,87526.0,0.00011]
[1766594691720,0.01156,87538.0,87526.0,0.06866055]
[1766594692275,0.01156,87538.0,87527.0,0.01142504]
[1766594692407,0.01156,87538.0,87526.0,0.06866055]
[1766594692592,0.01156,87538.0,87526.0,0.01153517]
[1766594692796,0.01156,87538.0,87526.0,0.06866078]
[1766594692993,0.01156,87538.0,87526.0,0.01153517]
[1766594693438,0.02298361,87538.0,87526.0,0.00011]
[1766594693638,0.01156,87538.0,87526.0,0.00011]
[1766594693842,0.01156,87538.0,87528.0,0.01142491]
[1766594694043,0.01156,87538.0,87529.0,0.06854813]
[1766594694278,0.01156,87538.0,87528.0,0.06854899]
[1766594694441,0.01156,87538.0,87526.0,0.00011]
[1766594694644,0.01156,87538.0,87515.0,0.06085977]
[1766594694645,0.01142491,87528.0,87515.0,0.06085977]
[1766594694981,0.01142491,87528.0,87497.0,0.1461]
[1766594694982,0.000439,87515.0,87501.0,0.01142844]
[1766594695160,0.000439,87515.0,87496.0,0.01156]
[1766594695161,0.01156,87519.0,87506.0,0.01142778]
[1766594695331,0.01156,87519.0,87507.0,0.01142765]
[1766594695516,0.01142543,87524.0,87508.0,0.01142752]
[1766594695744,0.01142582,87521.0,87506.0,0.05713884]
[1766594695919,0.01142569,87522.0,87508.0,0.01142752]
[1766594696137,0.01142582,87521.0,87508.0,0.06891957]
[1766594696306,0.01142595,87520.0,87508.0,0.00035443]
[1766594696717,0.01156,87523.0,87509.0,0.01142739]
[1766594696923,0.01142569,87522.0,87509.0,0.0685642]
[1766594697145,0.02298556,87523.0,87510.0,0.01142726]
[1766594697349,0.02298556,87523.0,87509.0,0.0685642]
[1766594697624,0.02298556,87523.0,87508.0,0.06891893]
[1766594697625,0.02513194,87529.0,87523.0,0.000439]
[1766594697830,0.02526716,87529.0,87523.0,0.000439]
[1766594698103,0.09381641,87529.0,87514.0,0.05713309]
[1766594698308,0.09381641,87529.0,87510.0,0.67658241]
[1766594698309,0.01156,87529.0,87519.0,0.01142609]
[1766594698513,0.01142282,87544.0,87530.0,0.01142465]
[1766594698727,0.01142282,87544.0,87524.0,0.01142543]
[1766594698728,0.01142334,87540.0,87528.0,0.01156]
[1766594698945,0.01156,87541.0,87528.0,0.06868453]
[1766594699178,1.46123,87545.0,87528.0,0.06868453]
[1766594699179,0.01153256,87546.0,87531.0,0.01142452]
[1766594699380,0.01370716,87540.0,87529.0,0.06854856]
[1766594699582,0.01370716,87540.0,87528.0,0.08010944]
[1766594699714,0.01370716,87540.0,87528.0,0.01156]
[1766594699915,0.01370716,87540.0,87528.0,0.02298491]
[1766594700124,0.01370716,87540.0,87529.0,0.05712392]
[1766594700363,0.01370716,87540.0,87528.0,0.02298491]
[1766594700364,0.01370716,87540.0,87531.0,0.01142452]
[1766594700560,0.01370716,87547.0,87540.0,0.000989]
[1766594700764,0.01370716,87547.0,87540.0,0.01142334]
[1766594700999,0.42110334,87572.0,87540.0,0.01142334]
[1766594701000,1.46123,87558.0,87543.0,0.01142295]
[1766594701161,0.01156,87561.0,87547.0,0.01142243]
[1766594701360,0.01156,87561.0,87526.0,0.08109874]
[1766594701361,0.00011,87556.0,87536.0,0.00011]
[1766594701608,0.01370716,87554.0,87541.0,0.01142321]
[1766594701815,0.01370716,87554.0,87543.0,0.06853735]
[1766594701985,0.01370716,87554.0,87542.0,0.01142308]
[1766594702202,0.01370716,87554.0,87540.0,0.65359515]
[1766594702203,0.06852991,87553.0,87540.0,0.65359515]
[1766594702406,0.06852991,87553.0,87537.0,0.01156]
[1766594702407,0.06853002,87553.0,87538.0,0.0685414]
[1766594702612,0.01370716,87552.0,87541.0,0.06853889]
[1766594702793,0.01370716,87552.0,87542.0,0.01142308]
[1766594703000,0.01370716,87552.0,87543.0,0.01156]
[1766594703571,0.01370716,87552.0,87536.0,0.00011]
[1766594703788,0.00011,87543.0,87537.0,0.01156]
[1766594704008,0.05711685,87540.0,87537.0,0.01156]
[1766594704232,0.05711685,87540.0,87521.0,0.23994231]
[1766594704233,0.06853711,87544.0,87515.0,0.01142661]
[1766594704234,0.05712363,87530.0,87515.0,0.01142661]
[1766594704446,0.01142478,87529.0,87520.0,0.01156]
[1766594704663,0.01142452,87531.0,87511.0,0.01156]
[1766594704664,0.01370716,87523.0,87511.0,0.01156]
[1766594704868,0.00011,87520.0,87511.0,0.01156]
[1766594705048,0.01156,87531.0,87515.0,0.05713242]
[1766594705266,0.01142478,87529.0,87516.0,0.01142648]
[1766594705480,0.01142465,87530.0,87517.0,0.01142635]
[1766594705691,0.01156,87531.0,87520.0,0.01142595]
[1766594705889,0.01156,87531.0,87516.0,0.00035443]
[1766594705890,0.01156,87531.0,87517.0,0.01156]
[1766594706090,0.06854801,87530.0,87517.0,0.01156]
[1766594706524,0.01142478,87529.0,87517.0,0.01156]
[1766594706794,0.01142674,87514.0,87500.0,0.65359515]
[1766594706996,0.01142674,87514.0,87496.0,0.06857442]
[1766594706997,0.01370716,87509.0,87496.0,0.06857442]
[1766594707206,0.01370716,87509.0,87495.0,0.01142922]
[1766594707410,0.01156,87513.0,87509.0,0.000439]
[1766594707612,0.01156,87513.0,87501.0,0.01142844]
[1766594707835,0.01156,87513.0,87502.0,0.01142831]
[1766594708044,0.01156,87513.0,87507.0,0.01142765]
[1766594708254,0.01156,87513.0,87509.0,0.01142739]
[1766594708424,1.47265569,87522.0,87508.0,0.06856504]
[1766594708642,1.47265569,87522.0,87503.0,0.01153817]
[1766594708643,0.01142635,87517.0,87503.0,0.01153817]
[1766594708808,0.01142661,87515.0,87503.0,0.00011]
[1766594709019,0.01142674,87514.0,87503.0,0.00011]
[1766594709223,0.011427,87512.0,87504.0,0.01156]
[1766594709424,0.011427,87512.0,87503.0,0.00011]
[1766594709625,0.06856049,87514.0,87505.0,0.01156]
[1766594709825,0.01156,87518.0,87505.0,0.01156]
[1766594710025,0.05713502,87512.0,87505.0,0.01156]
[1766594710228,0.01156,87529.0,87503.0,0.00011]
[1766594710229,0.06856748,87506.0,87503.0,1e-06]
[1766594710432,1.46123,87504.0,87503.0,1e-06]
[1766594710861,1.51837024,87504.0,87503.0,1e-06]
[1766594711222,1.46123,87504.0,87503.0,1e-06]
[1766594711427,1.47279,87504.0,87503.0,1e-06]
[1766594718930,1.52993024,87504.0,87503.0,1e-06]
[1766594719950,1.51837024,87504.0,87503.0,1e-06]
[1766594721356,1.46123,87504.0,87503.0,1e-06]
[1766594721802,0.05714024,87504.0,87503.0,1e-06]
[1766594722697,1.51837024,87504.0,87503.0,1e-06]
[1766594725669,1.46123,87504.0,87503.0,1e-06]
[1766594725866,1.51837024,87504.0,87503.0,1e-06]
[1766594727790,0.01156,87505.0,87504.0,0.000549]
[1766594728001,0.01156,87505.0,87503.0,1e-06]
[1766594728723,0.01142765,87507.0,87503.0,1e-06]
[1766594728925,0.01156,87504.0,87503.0,1e-06]
[1766594729462,0.00558514,87504.0,87503.0,1e-06]
[1766594729689,0.00259827,87504.0,87503.0,1e-06]
[1766594729895,0.00308,87504.0,87503.0,1e-06]
[1766594732376,0.01142765,87507.0,87503.0,1e-06]
[1766594732594,0.06856602,87507.0,87503.0,1e-06]
[1766594732823,0.06856693,87506.0,87503.0,1e-06]
[1766594733030,0.05714024,87504.0,87503.0,1e-06]
[1766594734600,0.05713974,87505.0,87503.0,1e-06]
[1766594735889,0.05714024,87504.0,87503.0,1e-06]
[1766594736301,0.05713974,87505.0,87503.0,1e-06]
[1766594736712,0.05713983,87505.0,87503.0,1e-06]
[1766594736912,0.05714024,87504.0,87503.0,1e-06]
[1766594737834,1.48783024,87504.0,87503.0,1e-06]
[1766594741715,1.48748192,87504.0,87503.0,1e-06]
[1766594744089,1.48730904,87504.0,87503.0,1e-06]
[1766594744596,1.48730904,87504.0,87482.0,0.11430493]
[1766594744597,0.01142948,87493.0,87478.0,0.01143144]
[1766594744816,1.43069,87494.0,87478.0,0.01153776]
[1766594744817,1.43069,87491.0,87478.0,0.01153776]
[1766594745012,1.44211974,87491.0,87479.0,0.01143131]
[1766594745213,1.43069,87491.0,87479.0,0.01143131]
[1766594745451,0.01142883,87498.0,87481.0,0.01143105]
[1766594745654,0.02513664,87493.0,87480.0,0.51459467]
[1766594745836,0.02513664,87493.0,87478.0,0.01153776]
[1766594745837,0.01143013,87488.0,87478.0,0.00010632]
[1766594746001,1.44212026,87487.0,87478.0,0.00010632]
[1766594746180,1.43069,87487.0,87478.0,0.00010632]
[1766594746992,1.44212026,87487.0,87478.0,0.00010632]
[1766594747189,0.01143053,87485.0,87478.0,0.00010632]
[1766594747392,0.0571544,87483.0,87478.0,0.00010632]
[1766594747594,0.06858519,87483.0,87478.0,0.00010632]
[1766594747798,1.43069,87487.0,87478.0,0.00010632]
[1766594748001,1.44212026,87487.0,87478.0,0.00010632]
[1766594748200,1.43069,87487.0,87478.0,0.00010632]
[1766594748491,0.01143053,87485.0,87478.0,0.00010632]
[1766594748697,0.06858263,87486.0,87478.0,0.00010632]
[1766594748901,0.0114304,87486.0,87478.0,0.00010632]
[1766594749270,0.01143079,87483.0,87478.0,0.00010632]
[1766594749554,0.06858687,87481.0,87478.0,0.00010632]
[1766594749758,0.01143079,87483.0,87478.0,0.00010632]
[1766594749957,0.01143066,87484.0,87478.0,0.00010632]
[1766594750123,0.01143079,87483.0,87478.0,0.00010632]
[1766594750307,0.06858415,87484.0,87478.0,0.00010632]
[1766594750308,0.01143066,87484.0,87478.0,0.00010632]
[1766594750510,0.06858359,87485.0,87478.0,0.00010632]
[1766594750850,0.06858504,87483.0,87478.0,0.00010632]
[1766594751395,0.06858504,87483.0,87464.0,0.01143327]
[1766594751396,0.01143157,87477.0,87464.0,0.01143327]
[1766594751593,0.01143183,87475.0,87458.0,0.01143405]
[1766594751841,1.43069,87476.0,87458.0,0.01143405]
[1766594751842,1.43069,87476.0,87467.0,0.01156]
[1766594751997,1.43069,87476.0,87459.0,0.27439787]
[1766594751998,0.01143222,87472.0,87466.0,0.01196]
[1766594752201,0.01143236,87471.0,87466.0,0.01196]
[1766594752637,0.01143196,87474.0,87466.0,0.01196]
[1766594752638,0.01143209,87473.0,87466.0,0.0004]
[1766594753016,0.01143209,87473.0,87460.0,0.01143379]
[1766594753017,0.01143419,87457.0,87454.0,0.00011]
[1766594753210,0.01143419,87457.0,87415.0,0.0004]
[1766594753211,0.00010618,87477.0,87438.0,0.01156]
[1766594753212,0.01143575,87445.0,87438.0,0.01156]
[1766594753546,0.01143575,87445.0,87432.0,0.01156]
[1766594753547,0.0004,87442.0,87432.0,0.01156]
[1766594753749,0.02299536,87448.0,87432.0,0.01156]
[1766594753977,0.02299536,87448.0,87430.0,0.01156]
[1766594753978,0.01143602,87443.0,87430.0,0.01156]
[1766594754182,0.01143693,87436.0,87430.0,0.44600815]
[1766594754327,1.44212654,87439.0,87430.0,0.00035494]
[1766594754532,1.43069,87439.0,87430.0,0.01143772]
[1766594754767,1.43069,87439.0,87431.0,0.01143759]
[1766594755223,1.43069,87439.0,87425.0,0.00011]
[1766594755224,0.01370716,87435.0,87425.0,0.00011]
[1766594755446,0.01143732,87433.0,87425.0,0.00011]
[1766594755647,0.01143732,87433.0,87421.0,0.00375322]
[1766594755648,0.01143759,87431.0,87421.0,0.00375322]
[1766594755911,1.43069,87430.0,87421.0,0.00375322]
[1766594756125,0.01406122,87435.0,87432.0,0.01143745]
[1766594756126,4.06e-06,87435.0,87432.0,0.01143745]
[1766594756324,0.01370716,87448.0,87436.0,0.01143693]
[1766594756527,0.01370716,87448.0,87432.0,0.01143745]
[1766594756528,0.01156,87444.0,87439.0,0.06861921]
[1766594756684,0.01156,87444.0,87439.0,0.00010646]
[1766594757822,0.01156,87444.0,87431.0,0.01143759]
[1766594757823,1.43069,87443.0,87431.0,0.01143759]
[1766594758021,1.44223216,87443.0,87431.0,0.01143759]
[1766594758224,1.44223216,87443.0,87429.0,0.05718899]
[1766594758225,1.48797663,87443.0,87429.0,0.06862684]
[1766594758432,1.49941265,87443.0,87429.0,0.06862684]
[1766594758632,0.01143615,87442.0,87430.0,0.01143772]
[1766594758999,0.0114368,87437.0,87426.0,0.01156]
[1766594759207,0.01143667,87438.0,87426.0,0.01156]
[1766594759378,1.43743654,87439.0,87427.0,0.01143811]
[1766594759619,1.43743654,87439.0,87426.0,0.01156]
[1766594759620,1.43743654,87439.0,87431.0,0.00025067]
[1766594759820,1.43743654,87439.0,87431.0,0.01143759]
[1766594759821,1.425894,87439.0,87431.0,0.01143759]
[1766594759994,1.425894,87439.0,87428.0,0.01143798]
[1766594760237,0.01370716,87438.0,87430.0,0.01143772]
[1766594760390,0.01370716,87438.0,87430.0,0.06862616]
[1766594760588,0.01370716,87438.0,87430.0,0.01143772]
[1766594760871,0.01370716,87438.0,87427.0,0.06862856]
[1766594761040,0.01370716,87438.0,87430.0,0.01143772]
[1766594761396,0.01156,87444.0,87428.0,0.01143798]
[1766594761397,0.01143405,87458.0,87441.0,0.01143628]
[1766594761596,1.426,87459.0,87441.0,0.01143628]
[1766594761597,0.01370716,87451.0,87441.0,0.01143628]
[1766594761801,0.01370716,87451.0,87439.0,0.06861875]
[1766594762007,0.00011,87453.0,87438.0,0.01156]
[1766594762008,0.01370716,87465.0,87453.0,0.01143471]
[1766594762205,0.01370716,87465.0,87450.0,0.0114351]
[1766594762206,0.02526716,87465.0,87454.0,0.01143458]
[1766594762448,0.01143392,87459.0,87449.0,0.01156]
[1766594762679,0.01143392,87459.0,87430.0,0.44600815]
[1766594762680,0.01143654,87439.0,87394.0,0.0633606]
[1766594762852,0.000549,87449.0,87393.0,0.08140632]
[1766594762853,0.01370716,87432.0,87427.0,0.01143811]
[1766594763204,0.01370716,87450.0,87427.0,0.01143811]
[1766594763205,0.06860716,87455.0,87440.0,0.01143641]
[1766594763458,0.06860716,87455.0,87441.0,0.01143628]
[1766594763459,0.01370716,87447.0,87441.0,0.01143628]
[1766594763671,0.01370716,87447.0,87440.0,0.01143641]
[1766594763872,0.01370716,87447.0,87440.0,0.0686182]
[1766594764046,0.01315816,87447.0,87443.0,0.01143602]
[1766594764251,0.00377816,87447.0,87442.0,0.01143615]
[1766594764464,0.00377816,87447.0,87440.0,0.01156]
[1766594765096,1.42977816,87447.0,87440.0,0.01156]
[1766594765507,1.42977816,87447.0,87442.0,0.06861633]
[1766594765703,1.42977816,87447.0,87440.0,0.01156]
[1766594766064,0.05717319,87454.0,87440.0,0.02299641]
[1766594766269,0.01370716,87448.0,87440.0,0.01156]
[1766594766467,0.01370716,87448.0,87440.0,0.08017838]
[1766594766818,0.01370716,87448.0,87440.0,0.01156]
[1766594767016,0.01370716,87448.0,87441.0,0.01156]
[1766594767252,0.01370716,87448.0,87441.0,0.02299628]
[1766594767693,0.01370716,87448.0,87441.0,0.01156]
[1766594767910,0.01370716,87448.0,87441.0,0.02299628]
[1766594768544,0.01370716,87448.0,87442.0,0.01156]
[1766594768759,1.426,87468.0,87449.0,0.01143523]
[1766594768961,1.426,87468.0,87450.0,0.01156]
[1766594768962,0.01156,87466.0,87450.0,0.01156]
[1766594769162,0.0114334,87463.0,87451.0,0.01143497]
[1766594769293,0.01143327,87464.0,87451.0,0.01143497]
[1766594769499,0.0114334,87463.0,87451.0,0.01143497]
[1766594769705,0.01143353,87462.0,87450.0,0.01156]
[1766594769908,0.06860208,87461.0,87450.0,0.01156]
[1766594770114,0.01143353,87462.0,87450.0,0.0229951]
[1766594770385,0.0251403,87465.0,87450.0,0.0229951]
[1766594770386,0.01370716,87465.0,87455.0,0.01143445]
[1766594770582,0.01156,87466.0,87456.0,0.01143432]
[1766594770811,0.01156,87472.0,87458.0,0.05717029]
[1766594771271,0.0571632,87469.0,87456.0,0.02299432]
[1766594771448,0.0571641,87468.0,87456.0,0.01156]
[1766594771676,0.01143301,87466.0,87456.0,0.01156]
[1766594771847,0.0685973,87467.0,87456.0,0.01156]
[1766594772005,0.01143288,87467.0,87456.0,0.01156]
[1766594772642,0.01143275,87468.0,87456.0,0.01156]
[1766594773013,0.01143275,87468.0,87456.0,0.02299432]
[1766594773220,0.03065966,87511.0,87456.0,0.02299432]
[1766594773221,0.0685921,87474.0,87457.0,0.05717095]
[1766594773419,0.05716081,87473.0,87458.0,0.05717029]
[1766594773624,0.01143222,87472.0,87458.0,0.05717029]
[1766594774226,0.01143236,87471.0,87458.0,0.05717029]
[1766594774424,0.01143196,87474.0,87458.0,0.05717029]
[1766594774821,1.43756,87477.0,87458.0,0.05717029]
[1766594775059,1.426,87488.0,87471.0,0.01143236]
[1766594775227,1.426,87488.0,87472.0,0.01156]
[1766594775228,0.01143079,87483.0,87472.0,0.01156]
[1766594775446,0.01143092,87482.0,87472.0,0.01156]
[1766594775646,0.01143105,87481.0,87472.0,0.011011]
[1766594776022,0.01143118,87480.0,87472.0,0.011011]
[1766594776240,0.01143105,87481.0,87472.0,0.011011]
[1766594776441,0.00011,87482.0,87472.0,0.011011]
[1766594776836,0.01154092,87482.0,87472.0,0.011011]
[1766594777042,0.00011,87482.0,87472.0,0.011011]
[1766594777454,0.00011,87482.0,87473.0,0.01156]
[1766594777650,0.00011,87482.0,87474.0,0.01143196]
[1766594777870,0.00011,87482.0,87473.0,0.08015248]
[1766594778115,0.06356451,87504.0,87473.0,0.08015248]
[1766594778116,0.01370716,87509.0,87482.0,0.00011]
[1766594778398,0.00011,87498.0,87493.0,0.01142948]
[1766594778659,0.00011,87498.0,87496.0,0.05714501]
[1766594778834,0.00011,87498.0,87494.0,0.01156]
[1766594778835,0.00055,87496.0,87494.0,0.01156]
[1766594779189,0.00011,87498.0,87494.0,0.01156]
[1766594779990,0.00011,87498.0,87483.0,0.01143079]
[1766594779991,1.43970716,87495.0,87477.0,0.11434898]
[1766594780193,0.05714825,87492.0,87479.0,0.01156]
[1766594780393,0.05714825,87492.0,87478.0,0.01164788]
[1766594780394,0.01143013,87488.0,87480.0,0.01156]
[1766594780731,0.06857896,87491.0,87480.0,0.01156]
[1766594781125,0.01142974,87491.0,87480.0,0.01156]
[1766594781741,0.06857786,87492.0,87480.0,0.01156]
[1766594781742,0.0114304,87486.0,87480.0,0.01156]
[1766594782079,0.0114304,87486.0,87476.0,0.04576]
[1766594782080,1.426,87480.0,87476.0,0.01156]
[1766594782216,1.42610634,87480.0,87476.0,0.01156]
[1766594782427,1.42555734,87480.0,87476.0,0.01156]
[1766594782610,0.04116868,87479.0,87476.0,0.01156]
[1766594782811,0.05259999,87479.0,87476.0,0.01156]
[1766594783388,0.05715748,87478.0,87476.0,0.011011]
[1766594783703,0.05715748,87478.0,87477.0,0.01156]
[1766594783704,0.01143144,87478.0,87477.0,0.01156]
[1766594783872,0.04116868,87479.0,87477.0,0.01156]
[1766594785450,0.04116868,87479.0,87468.0,0.01143275]
[1766594785749,0.01143144,87478.0,87469.0,0.01156]
[1766594785955,0.06858887,87478.0,87469.0,0.01156]
[1766594786153,0.05259999,87479.0,87469.0,0.01156]
[1766594786359,0.04116868,87479.0,87469.0,0.02299262]
[1766594786564,0.04116868,87479.0,87470.0,0.01143249]
[1766594786766,0.04116868,87479.0,87469.0,0.01156]
[1766594786964,0.01143144,87478.0,87469.0,0.01156]
[1766594787211,0.01143144,87478.0,87470.0,0.01156]
[1766594787212,0.0114317,87476.0,87470.0,0.01156]
[1766594787412,0.0114317,87476.0,87462.0,0.00011]
[1766594787413,0.05715999,87474.0,87462.0,0.00011]
[1766594787562,1.426,87472.0,87463.0,0.01156]
[1766594787765,1.426,87472.0,87464.0,0.01143327]
[1766594787972,1.426,87472.0,87468.0,0.01143275]
[1766594788168,1.426,87472.0,87465.0,0.01143314]
[1766594788169,1.426,87472.0,87469.0,0.01156]
[1766594789710,1.426,87472.0,87466.0,0.06859794]
[1766594789711,1.426,87472.0,87470.0,0.01156]
[1766594789945,1.426,87472.0,87471.0,0.01156]
[1766594790272,0.04033053,87471.0,87470.0,0.01156]
[1766594791589,0.03978153,87471.0,87470.0,0.01156]
[1766594791739,0.03978153,87471.0,87463.0,0.0114334]
[1766594791944,0.03978153,87471.0,87464.0,0.01156]
[1766594792527,0.03978153,87471.0,87462.0,0.06871119]
[1766594792734,0.05121389,87471.0,87465.0,0.01156]
[1766594792927,0.03978153,87471.0,87465.0,0.01156]
[1766594793580,0.03978153,87471.0,87466.0,0.02299301]
[1766594793818,1.53e-06,87471.0,87466.0,0.01156]
[1766594794022,0.01143196,87474.0,87466.0,0.01156]
[1766594794217,0.05715987,87474.0,87466.0,0.01156]
[1766594794429,0.01143209,87473.0,87466.0,0.01156]
[1766594794642,0.000549,87466.0,87462.0,0.00011]
[1766594794865,0.01143249,87470.0,87463.0,0.01156]
[1766594795107,0.06859472,87471.0,87463.0,0.01156]
[1766594795108,0.00083815,87469.0,87463.0,0.01156]
[1766594795516,0.00083815,87469.0,87457.0,0.10418039]
[1766594795517,0.000549,87463.0,87449.0,0.01143523]
[1766594795688,0.01143366,87461.0,87450.0,0.01156]
[1766594795891,0.01143366,87461.0,87436.0,0.00011]
[1766594795892,0.0114351,87450.0,87438.0,0.04572]
[1766594796096,0.01143549,87447.0,87440.0,0.01156]
[1766594796300,1.40169523,87449.0,87440.0,0.01156]
[1766594796301,1.39026,87449.0,87440.0,0.01156]
[1766594797262,1.39026,87449.0,87440.0,0.02299641]
[1766594797549,0.01143549,87447.0,87439.0,0.00011]
[1766594797767,0.44600815,87450.0,87430.0,0.01143772]
[1766594797768,0.00011,87439.0,87430.0,0.01143772]
[1766594797973,0.01143589,87444.0,87435.0,0.01156]
[1766594798149,0.01143575,87445.0,87435.0,0.01156]
[1766594798326,0.01156,87448.0,87435.0,0.01156]
[1766594798327,0.01156,87448.0,87440.0,0.01143641]
[1766594798531,0.01156,87448.0,87435.0,0.01156]
[1766594798762,0.01156,87448.0,87438.0,0.01143667]
[1766594799150,0.02299536,87448.0,87436.0,0.06862097]
[1766594799940,0.01156,87448.0,87437.0,0.0114368]
[1766594800136,0.02299536,87448.0,87436.0,0.06862097]
[1766594800800,0.01156,87448.0,87437.0,0.0114368]
[1766594801007,0.02299536,87448.0,87437.0,0.0114368]
[1766594801678,0.01143549,87447.0,87435.0,0.08018229]
[1766594802014,0.01156,87448.0,87436.0,0.01143693]
[1766594802217,0.01156,87448.0,87437.0,0.0114368]
[1766594802366,0.01156,87448.0,87435.0,0.02299706]
[1766594803497,0.01143549,87447.0,87436.0,0.01143693]
[1766594804239,0.01156,87448.0,87437.0,0.0114368]
[1766594805892,0.04128398,87453.0,87438.0,0.01143667]
[1766594806095,0.04128398,87453.0,87441.0,0.01143628]
[1766594806274,0.02984927,87453.0,87442.0,0.01143615]
[1766594806487,0.02984927,87453.0,87443.0,0.01143602]
[1766594806705,0.02984927,87453.0,87446.0,0.01143562]
[1766594806886,0.01828927,87453.0,87447.0,0.01156]
[1766594807094,0.01828927,87453.0,87447.0,0.011011]
[1766594807294,0.01828927,87453.0,87434.0,0.22874361]
[1766594807295,0.01143549,87447.0,87444.0,0.01156]
[1766594807494,0.00055,87444.0,87443.0,0.01156]
[1766594807939,0.06861411,87446.0,87443.0,0.01156]
[1766594808141,1.38054575,87445.0,87440.0,0.01156]
[1766594808380,1.38054575,87445.0,87431.0,0.01143759]
[1766594808381,1.38054575,87445.0,87430.0,0.00010614]
[1766594808382,0.01143628,87441.0,87430.0,0.00010614]
[1766594808550,0.01143628,87441.0,87437.0,0.0113395]
[1766594808551,0.05729337,87438.0,87437.0,0.0113395]
[1766594808753,0.00044,87437.0,87430.0,0.00010614]
[1766594808907,0.01828927,87439.0,87430.0,0.01166614]
[1766594809536,0.02972581,87439.0,87430.0,0.00010614]
[1766594809861,1.38739927,87439.0,87430.0,0.00010614]
[1766594810818,1.44458204,87439.0,87430.0,0.00010614]
[1766594811217,1.38739927,87439.0,87430.0,0.00010614]
[1766594812137,1.39883581,87439.0,87430.0,0.00010614]
[1766594812451,1.38739927,87439.0,87430.0,0.00010614]
[1766594812652,1.39883581,87439.0,87430.0,0.00010614]
[1766594812858,0.01143667,87438.0,87430.0,0.00010614]
[1766594813058,1.38739927,87439.0,87431.0,0.01156]
[1766594815977,1.38739927,87439.0,87426.0,0.01143824]
[1766594815978,1.36911,87430.0,87424.0,0.01156]
[1766594816178,1.36921626,87430.0,87424.0,0.01156]
[1766594816382,0.01143798,87428.0,87415.0,0.0004]
[1766594816631,1.38739927,87423.0,87416.0,0.01156]
[1766594816850,1.38739927,87423.0,87415.0,0.0004]
[1766594816995,1.36911,87421.0,87415.0,0.0004]
[1766594817198,1.36911,87421.0,87408.0,0.0114406]
[1766594817199,0.01143916,87419.0,87405.0,0.01144099]
[1766594817406,0.0004,87415.0,87411.0,0.0114402]
[1766594817833,1.36911,87419.0,87412.0,0.01144007]
[1766594818006,0.01156,87422.0,87410.0,0.01144033]
[1766594818007,0.01156,87422.0,87419.0,0.000549]
[1766594818210,0.01156,87422.0,87410.0,0.2288062]
[1766594818211,1.36475,87422.0,87411.0,0.05720103]
[1766594818438,0.01144193,87423.0,87413.0,0.01143994]
[1766594818439,1.36475,87419.0,87413.0,0.01143994]
[1766594818744,1.36475,87419.0,87413.0,0.05719972]
[1766594818947,1.36475,87419.0,87412.0,0.01144007]
[1766594819358,1.36475,87419.0,87412.0,0.06864043]
[1766594819760,1.36475,87419.0,87411.0,0.0114402]
[1766594819972,1.36475,87419.0,87410.0,6.2e-06]
[1766594820175,1.36475,87414.0,87410.0,6.2e-06]
[1766594820462,0.01156,87418.0,87410.0,6.2e-06]
[1766594820665,0.02807783,87425.0,87412.0,0.05720038]
[1766594820820,0.01828927,87425.0,87411.0,0.28668]
[1766594821163,0.01828927,87425.0,87412.0,0.01144007]
[1766594821365,0.01828927,87425.0,87410.0,6.2e-06]
[1766594821366,0.01143876,87422.0,87410.0,0.01144653]
[1766594821604,0.01143916,87419.0,87410.0,6.2e-06]
[1766594821806,1.43338366,87421.0,87411.0,0.01156]
[1766594822005,0.01143902,87420.0,87411.0,0.01156]
[1766594822449,0.06863661,87417.0,87411.0,0.01156]
[1766594822624,0.06863661,87417.0,87410.0,6.2e-06]
[1766594822625,0.000549,87411.0,87410.0,6.2e-06]
[1766594823061,0.01143916,87419.0,87410.0,6.2e-06]
[1766594823475,0.05720038,87412.0,87410.0,6.2e-06]
[1766594823685,0.01828927,87411.0,87410.0,6.2e-06]
[1766594824076,1.36475,87414.0,87410.0,6.2e-06]
[1766594824292,0.01156,87415.0,87410.0,6.2e-06]
[1766594825302,0.02299968,87415.0,87410.0,6.2e-06]
[1766594825716,0.05720103,87411.0,87410.0,6.2e-06]
[1766594825919,0.05720103,87411.0,87374.0,0.01828927]
[1766594825920,0.06864964,87401.0,87387.0,0.06885991]
[1766594826131,1.36475,87405.0,87387.0,0.06885991]
[1766594826132,0.01144138,87402.0,87394.0,0.01156]
[1766594826343,0.05720781,87401.0,87394.0,0.01156]
[1766594826582,0.01144138,87402.0,87387.0,0.06885956]
[1766594826583,0.000549,87394.0,87387.0,0.0002]
[1766594826786,0.01828927,87396.0,87387.0,0.0002]
[1766594826787,0.01828927,87396.0,87388.0,0.01156]
[1766594826997,0.01828927,87396.0,87390.0,0.01184295]
[1766594827171,0.01837026,87396.0,87391.0,0.0686567]
[1766594827382,0.01837026,87396.0,87392.0,0.01144269]
[1766594827582,0.01837026,87396.0,87391.0,0.01144282]
[1766594827988,0.01837026,87396.0,87392.0,0.01144269]
[1766594828235,0.01837026,87396.0,87390.0,0.0690571]
[1766594828236,0.01828927,87411.0,87403.0,0.05720595]
[1766594828366,0.01156,87410.0,87403.0,0.00035406]
[1766594828565,0.06864306,87409.0,87403.0,6e-08]
[1766594828800,0.02190507,87411.0,87403.0,6e-08]
[1766594829205,0.03334527,87411.0,87403.0,6e-08]
[1766594829378,0.02190507,87411.0,87403.0,6e-08]
[1766594830069,0.03334527,87411.0,87403.0,6e-08]
[1766594830273,0.02190507,87411.0,87403.0,6e-08]
[1766594830591,0.0905463,87411.0,87410.0,0.00065793]
[1766594830814,0.02190507,87411.0,87410.0,9.3e-07]
[1766594831138,0.01143916,87419.0,87410.0,9.3e-07]
[1766594831139,0.01143889,87421.0,87410.0,0.01144126]
[1766594831348,0.01143889,87421.0,87409.0,0.01144046]
[1766594831542,0.01156,87422.0,87413.0,0.01143994]
[1766594831791,0.01828927,87425.0,87414.0,0.01143981]